[Event "10th Cherry Blossom Classic 2023"]
[Site "Dulles"]
[Date "2023.05.29"]
[Round "7.5"]
[White "Tanenbaum, Zachary"]
[Black "Hilby, Craig"]
[Result "1/2-1/2"]
[ECO "C13"]
[WhiteElo "2261"]
[BlackElo "2401"]
[Annotator "TA"]
[PlyCount "64"]
[EventDate "2023.05.24"]
[EventType "swiss"]
[EventCountry "USA"]
[SourceTitle "playchess.com"]
[Source "ChessBase"]
[SourceQuality "1"]
[TimeControl "5400+30"]

{[%evp 14,64,7,23,12,13,25,21,20,19,27,12,6,0,10,22,18,0,0,-27,-27,-22,-31,-25,-17,-19,-18,-8,-14,-25,9,9,6,8,6,0,0,0,0,0,0,0,0,0,0,0,0,-4,0,0,0,0,0]} 1. e4 {[%emt 0:02:23]} e6 {[%emt 0:00:10]} 2. d4 {[%emt 0:00:02]} d5 {[%emt 0:00:04]} 3. Nc3 {[%emt 0:00:04]} Nf6 {[%emt 0:00:19]} 4. Bg5 {[%emt 0:00:10]} dxe4 {[%emt 0:00:20]} 5. Nxe4 {[%emt 0:00:04]} Be7 {[%emt 0:00:11]} 6. Bxf6 {[%emt 0:00:02]} gxf6 {[%emt 0:00:28]} 7. Nf3 {[%emt 0:00:02]} f5 {[%emt 0:00:26]} 8. Nc3 {[%emt 0:00:03]} a6 {[%emt 0:00:36] C13: French: Classical System: 4 Bg5 Be7, Alekhine-Chatard Attack.} 9. Qe2 {[%emt 0:00:03]} b5 {[%emt 0:00:57]} 10. O-O-O {[%emt 0:00:08]} b4 {[%emt 0:01:00]} 11. Na4 {[%emt 1:32:59]} Qd5 {[%emt 0:00:41]} 12. b3 {[%emt 0:00:00]} Nd7 {[%emt 0:02:54]} 13. Qd2 {[%emt 0:00:00]} Bb7 {[%emt 0:10:27]} 14. Bc4 {[%emt 0:00:00]} Qd6 {[%emt 0:00:50] [#]} 15. Rhe1 $146 {[%emt 0:00:00]} (15. d5 $5 {[%cal Rd5e6]}) ({Predecessor:} 15. Qe2 Nb6 16. Nxb6 cxb6 17. Ne5 Bf6 18. Rhe1 O-O 19. Qh5 Qe7 20. Rd3 Bxe5 21. dxe5 {½-½ Pridorozhni,A (2519)-Looshnikov,N (2469) Urals-ch 72nd 2014 (4)}) 15... Rg8 {[%emt 0:11:44] [#] aiming for ...Bxf3.} 16. Qe3 {[%emt 0:00:00][%cal Od4d5]} (16. d5 $5 {[%cal Rd5e6]} e5 17. g3 $11) 16... Rxg2 {[%emt 0:10:55]} 17. d5 $1 {[%emt 0:00:00][%cal Rd5e6]} e5 {[%emt 0:01:42]} (17... exd5 $2 18. Bxd5 f4 19. Qxe7+ (19. Bxb7 fxe3 20. Rxd6 Rb8 $18) 19... Qxe7 20. Bxb7 $18 (20. Rxe7+ Kxe7 21. Bxb7 Rag8 $18)) 18. Nxe5 {[%emt 0:00:00]} Nxe5 {[%emt 0:01:36]} 19. Qxe5 {[%emt 0:00:00]} Qxe5 {[%emt 0:07:34]} 20. Rxe5 {[%emt 0:00:00]} Kf8 {[%emt 0:00:08] Strongly threatening ...Bd6.} 21. d6 $1 {[%emt 0:00:00]} Bxd6 {[%emt 0:02:38]} 22. Rxf5 {[%emt 0:00:00] The position is equal.} Rg7 {[%emt 0:00:07]} 23. Nc5 {[%emt 0:00:00] Prevents Be4.} Bc8 {[%emt 0:00:10] A strong pair of Bishops.} 24. Ne6+ {[%emt 0:00:00]} Bxe6 {[%emt 0:00:09]} 25. Bxe6 {[%emt 0:00:00]} Re8 {[%emt 0:03:37]} 26. Bc4 {[%emt 0:00:00]} Re5 {[%emt 0:01:47]} 27. Rf3 {[%emt 0:00:00]} a5 {[%emt 0:05:58]} 28. h3 {[%emt 0:00:00]} Ke7 {[%emt 0:00:31]} 29. Rd5 {[%emt 0:00:00]} Rxd5 {[%emt 0:07:07]} 30. Bxd5 {[%emt 0:00:00]} Be5 {[%emt 0:00:13]} 31. Kd2 {[%emt 0:00:00]} f6 {[%emt 0:01:04]} 32. Rf5 {[%emt 0:00:00]} Rg5 {[%emt 0:05:11] An interesting draw.   Weighted Error Value: White=0.03 (flawless) /Black=0.03 (flawless)} 1/2-1/2

[Event "10th Cherry Blossom Classic 2023"]
[Site "Dulles"]
[Date "2023.05.29"]
[Round "7.6"]
[White "Morefield, Jason"]
[Black "Druska, Juraj"]
[Result "0-1"]
[ECO "B12"]
[WhiteElo "2167"]
[BlackElo "2496"]
[Annotator "TA"]
[PlyCount "86"]
[EventDate "2023.05.24"]
[EventType "swiss"]
[EventCountry "USA"]
[SourceTitle "playchess.com"]
[Source "ChessBase"]
[SourceQuality "1"]
[TimeControl "5400+30"]

{[%evp 9,86,19,20,7,15,15,12,0,15,14,9,0,15,0,12,5,4,0,9,0,0,-8,-20,-31,-25,-37,-24,-35,-23,-33,-33,-89,-70,-124,-145,-123,-159,-204,-211,-206,-204,-168,-197,-257,-245,-252,-257,-250,-249,-252,-252,-252,-252,-252,-232,-235,-184,-185,-180,-173,-183,-257,-252,-247,-243,-645,-627,-362,-497,-407,-268,-355,-355,-355,-350,-347,-336,-317,-312]} 1. e4 {[%emt 0:00:02]} c6 {[%emt 0:08:19]} 2. d4 {[%emt 0:00:11]} d5 {[%emt 0:00:07]} 3. e5 {[%emt 0:00:07]} Bf5 {[%emt 0:00:08]} 4. h4 {[%emt 0:00:09]} h5 {[%emt 0:00:06]} 5. Bd3 {[%emt 0:00:08]} Bxd3 {[%emt 0:00:07]} 6. Qxd3 {[%emt 0:00:06][%cal Oe5e6] With the idea e6! B12: Caro-Kann: Advance Variation.} Qa5+ {[%emt 0:00:09]} 7. Nd2 {[%emt 0:00:11][%cal Oe5e6] Hoping for e6!} e6 {[%emt 0:00:10]} 8. Ngf3 {[%emt 0:00:37] The position is equal.} Nh6 $1 {[%emt 0:00:21] 8...Nh6 scores better than 8...Qa6.} 9. O-O {[%emt 0:00:20]} Nf5 {[%emt 0:00:05]} 10. Nb3 {[%emt 0:00:46]} Qb5 {[%emt 0:00:10]} 11. Qd1 {[%emt 0:00:26]} (11. Qxb5 {simplifies} cxb5 12. a3 Be7 13. Bg5) 11... c5 {[%emt 0:00:08]} 12. dxc5 {[%emt 0:01:17]} Bxc5 {[%emt 0:00:07]} 13. a4 {[%emt 0:00:52]} Qb6 {[%emt 0:01:53]} 14. Nxc5 {[%emt 0:01:32]} Qxc5 {[%emt 0:00:08]} 15. b3 {[%emt 0:00:07][%cal Oc2c4]} Nc6 {[%emt 0:00:24]} 16. Bb2 {[%emt 0:08:32] [#]} Qb4 $146 {[%emt 0:01:10]} ({Predecessor:} 16... Rd8 17. Qd2 Rh6 18. Ba3 Qb6 19. Rfe1 Rg6 20. Kh2 d4 21. Qd3 Rd5 22. Re4 Qc7 {0-1 Szpar,M (2434)-Gumularz,S (2539) EU-ch Rapid Katowice 2021 (10)}) 17. g3 {[%emt 0:01:04]} Qg4 {[%emt 0:08:23]} 18. Kh2 {[%emt 0:02:18]} (18. Nh2 {simplifies} Qxd1 19. Rfxd1 O-O 20. Nf3) 18... Rc8 {[%emt 0:02:26]} 19. Rc1 {[%emt 0:05:11]} O-O {[%emt 0:03:15]} 20. c4 {[%emt 0:03:17]} ({White should play} 20. Re1 $15) 20... Rfd8 $17 {[%emt 0:00:25] ...dxc4 would be deadly. White is on the road to losing.} 21. cxd5 {[%emt 0:00:40]} (21. Qe2 $15) 21... Rxd5 {[%emt 0:00:17]} 22. Qe2 {[%emt 0:00:11]} Rcd8 {[%emt 0:20:10] Black has more active pieces.} 23. Rfd1 {[%emt 0:09:13] Repels Rd3} Rxd1 {[%emt 0:05:50]} 24. Rxd1 {[%emt 0:00:08]} Rxd1 {[%emt 0:00:04]} 25. Qxd1 {[%emt 0:00:08] [#]} g5 $1 {[%emt 0:00:10][%cal Rg5h4]} 26. hxg5 {[%emt 0:06:23]} (26. Qd3 $142 gxh4 27. Nxh4) 26... h4 $19 {[%emt 0:00:08][%cal Rh4g3]} 27. Qe2 {[%emt 0:03:14]} hxg3+ {[%emt 0:06:11]} 28. fxg3 {[%emt 0:00:31]} Qxg3+ {[%emt 0:00:14]} 29. Kh1 {[%emt 0:00:05]} Qf4 {[%emt 0:10:50] ( -> ...Ng3+)} (29... Qh3+ $2 30. Kg1 $19) 30. Kg1 {[%emt 0:04:37]} Nce7 {[%emt 0:03:10] aiming for ...Ng3. A dynamic duo of knights.} 31. Bc3 {[%emt 0:03:03]} Ng6 {[%emt 0:08:36]} 32. Bd2 {[%emt 0:00:16]} Nd4 {[%emt 0:00:39]} 33. Nxd4 {[%emt 0:00:18]} Qxd4+ {[%emt 0:00:02][%mdl 4096] Endgame KQB-KQN} 34. Qe3 {[%emt 0:03:11]} Qd5 {[%emt 0:02:36]} ({Weaker is} 34... Qxe5 35. Qxe5 Nxe5 36. Kf2 $17) 35. b4 {[%emt 0:01:30]} (35. Be1 $142) 35... Nxe5 {[%emt 0:13:11]} (35... Qxe5 36. Qxa7 Qe2 37. Qe3 Qd1+ 38. Kf2 $17) 36. Bc1 {[%emt 0:01:02]} a6 {[%emt 0:01:28]} 37. Qf4 $2 {[%emt 0:01:51]} (37. Kf1) 37... Qd1+ {[%emt 0:02:48]} 38. Kg2 {[%emt 0:00:46]} Qe2+ {[%emt 0:00:09]} 39. Kg3 {[%emt 0:00:16]} Nd3 {[%emt 0:00:57]} 40. Qd2 {[%emt 0:00:23]} Qe5+ {[%emt 0:00:55]} 41. Kg4 {[%emt 0:00:28]} Qe4+ {[%emt 0:00:16]} 42. Kg3 {[%emt 0:00:13]} Nxc1 {[%emt 0:02:15][%mdl 64] [#] Deflection} (42... Nxb4 43. Qd8+ Kh7 44. Qf8 Qe1+ 45. Kg2 Qe2+ 46. Kg3 Qd3+ 47. Kh4 Qe4+ 48. Kg3 Qd3+ 49. Kh4 Qc4+ 50. Kg3 Qc7+ 51. Kh3 $19 (51. Bf4 e5 $17)) 43. Qxc1 {[%emt 0:00:07]} Qxb4 {[%emt 0:00:07] Weighted Error Value: White=0.32/Black=0.10 (very precise)} 0-1

[Event "10th Cherry Blossom Classic 2023"]
[Site "Dulles"]
[Date "2023.05.29"]
[Round "7.7"]
[White "Sinha, Sahil"]
[Black "Stearman, Josiah"]
[Result "0-1"]
[ECO "E35"]
[WhiteElo "2317"]
[BlackElo "2385"]
[Annotator "TA"]
[PlyCount "88"]
[EventDate "2023.05.24"]
[EventType "swiss"]
[EventCountry "USA"]
[SourceTitle "playchess.com"]
[Source "ChessBase"]
[SourceQuality "1"]
[TimeControl "5400+30"]

{[%evp 12,88,11,0,0,0,0,6,12,6,14,0,0,4,10,0,-9,0,0,-153,-143,-147,-141,-272,-273,-424,-421,-394,-383,-412,-407,-407,-416,-416,-416,-397,-398,-386,-265,-264,-280,-387,-413,-478,-461,-454,-436,-518,-522,-479,-464,-442,-356,-701,-672,-834,-989,-1008,-991,-980,-981,-968,-951,-951,-910,-29971,-29969,-29977,-29978,-29982,-29983,-29983,-29984,-29984,-29985,-29985,-29982,-29982,-29982]} 1. d4 {[%emt 1:31:00]} Nf6 {[%emt 0:10:19]} 2. c4 {[%emt 0:00:00]} e6 {[%emt 0:00:11]} 3. Nc3 {[%emt 0:00:00]} Bb4 {[%emt 0:00:05]} 4. Qc2 {[%emt 0:00:00]} d5 {[%emt 0:00:05]} 5. cxd5 {[%emt 0:00:00]} exd5 {[%emt 0:00:05]} 6. Bg5 {[%emt 0:00:00][%cal Bc1g5,Bg5h4,Bh4g3,Bg3e5][%mdl 32]} h6 {[%emt 0:00:06][%cal Bh7h6,Bh6h5,Bh5h4][%mdl 32]} 7. Bh4 {[%emt 0:00:00] 7.Bh4 is better than 7.Bxf6.} Nc6 {[%emt 0:00:11] E35: Nimzo-Indian: Classical: 4...d5 5 cxd5 exd5.} 8. e3 {[%emt 0:00:00]} g5 {[%emt 0:00:07]} 9. Bg3 {[%emt 0:00:00]} h5 {[%emt 0:00:05] The position is equal.} 10. Bb5 {[%emt 0:00:00]} h4 {[%emt 0:00:29]} 11. Be5 {[%emt 0:00:00]} O-O {[%emt 0:00:25]} 12. Bxc6 {[%emt 0:00:00]} bxc6 {[%emt 0:00:07]} 13. a3 {[%emt 0:00:00]} Bxc3+ {[%emt 0:06:44]} 14. Qxc3 {[%emt 0:00:00]} Rb8 {[%emt 0:00:17][%cal Ba8b8,Bb8b6,Bb6c6,Bc6c2,Bc2b2,Bb2b1,Bb1h1][%mdl 32] [#]} 15. Nf3 $146 {[%emt 0:00:00] Black converts the advantage convincingly.} (15. Rc1 $11) ({Predecessor:} 15. Qxc6 Ne8 16. h3 Rxb2 17. Ne2 Bd7 18. Qc3 Qb8 19. Nc1 Nd6 20. O-O Ne4 21. Qa5 {½-½ Shakirov,M (2139)-Kundianok,V (2142) St Petersburg-ch 95th 2022 (7)}) 15... Ne4 $17 {[%emt 0:22:06]} 16. Qxc6 {[%emt 0:00:00] [#]} Rb6 $1 {[%emt 0:00:16]} 17. Qc1 {[%emt 0:00:00]} (17. Qxc7 $17 Qe8 18. O-O (18. Qxa7 $2 Qb5 $19)) 17... Qe8 $19 {[%emt 0:10:14]} 18. h3 {[%emt 0:00:00]} (18. Bxc7 Rc6 19. Qd1 Rxc7 $19) (18. Qxc7 $2 Qb5 19. Rc1 (19. Qxa7 $2 Ba6 $19) 19... Ba6 $19) (18. O-O {was worth a try.} f6 19. Bxc7) 18... Ba6 {[%emt 0:04:01] Hoping for ...Qb5.} 19. b4 {[%emt 0:00:00] White is weak on the light squares} (19. Qxc7 Qb5 20. Qc2 Rc8) 19... Qb5 {[%emt 0:01:57][%csl Ga6][%cal Rb5e2]} 20. Qb2 {[%emt 0:00:00] Wards off Qe2+} Rc6 {[%emt 0:02:37]} 21. a4 {[%emt 0:00:00]} Qd3 {[%emt 0:00:06] Strongly threatening ...Rc2.} 22. Rd1 {[%emt 0:00:00]} (22. b5 Rc2 $19) 22... Rc2 $1 {[%emt 0:00:11][%csl Ga6,Gc2][%cal Rd3e2]} 23. Rxd3 {[%emt 0:00:00]} Rxb2 {[%emt 0:00:05]} 24. b5 {[%emt 0:00:00] [#]} Bxb5 $1 {[%emt 0:00:42][%mdl 512]} 25. axb5 {[%emt 0:00:00] aiming for 0-0.} Rb1+ {[%emt 0:00:10][%mdl 64] Skewer} ({Resist} 25... Rxf2 26. Nxg5 (26. Bxc7 Rc2 $11) 26... f6 27. Nxe4 (27. Bxc7 $2 {too greedy.} fxg5 28. Rd1 Rc2 $19) 27... dxe4 28. Bh2 (28. Bxc7 Rc2 $16) (28. Kxf2 fxe5+ 29. Ke2 exd3+ 30. Kxd3 exd4 $16) 28... Rxg2 29. Rd2 $18) 26. Ke2 {[%emt 0:00:00]} Rxh1 {[%emt 0:00:11]} 27. Nd2 {[%emt 0:00:00]} Rc1 {[%emt 0:06:15]} 28. Nxe4 {[%emt 0:00:00]} dxe4 {[%emt 0:00:07][%mdl 4096] Endgame KRR-KRB} 29. Ra3 {[%emt 0:00:00]} f6 {[%emt 0:00:11]} 30. Kd2 {[%emt 0:00:00]} Rc4 {[%emt 0:00:09]} 31. Bh2 {[%emt 0:00:00]} Rb8 {[%emt 0:00:05]} 32. Rxa7 $2 {[%emt 0:00:00]} (32. Ra5) 32... Rxb5 {[%emt 0:00:06] White must now prevent ...Rb2+.} 33. Rxc7 {[%emt 0:00:00]} Rb2+ {[%emt 0:00:05]} 34. Ke1 {[%emt 0:00:00]} Ra4 {[%emt 0:01:56]} 35. Rc1 {[%emt 0:00:00] Wards off Ra1} Raa2 {[%emt 0:00:05]} 36. Bg1 {[%emt 0:00:00]} Kf7 {[%emt 0:00:45] ...f5 is the strong threat.} 37. Kf1 {[%emt 0:00:00]} f5 {[%emt 0:00:11] ( -> ...g4)} 38. Rd1 {[%emt 0:00:00]} g4 {[%emt 0:00:54][%cal Bg5g4,Bg4g3][%mdl 32] Black mates.} 39. d5 {[%emt 0:00:00]} g3 {[%emt 0:00:10]} 40. d6 {[%emt 0:00:00]} Rd2 {[%emt 0:00:21][%cal Rd2d1]} 41. Rb1 {[%emt 0:00:00]} Rxd6 {[%emt 0:00:11]} 42. Rc1 {[%emt 0:00:00]} Rda6 {[%emt 0:00:11]} 43. fxg3 {[%emt 0:00:00]} hxg3 {[%emt 0:00:11]} 44. Re1 {[%emt 0:00:00]} Ra1 {[%emt 0:00:09] Weighted Error Value: White=0.56/Black=0.05 (flawless)} 0-1

[Event "10th Cherry Blossom Classic 2023"]
[Site "Dulles"]
[Date "2023.05.29"]
[Round "7.8"]
[White "Muzychuk, Anna"]
[Black "Senft, Sean"]
[Result "0-1"]
[ECO "B80"]
[WhiteElo "2504"]
[BlackElo "2089"]
[Annotator "TA"]
[PlyCount "106"]
[EventDate "2023.05.24"]
[EventType "swiss"]
[EventCountry "USA"]
[SourceTitle "playchess.com"]
[Source "ChessBase"]
[SourceQuality "1"]
[TimeControl "5400+30"]

{[%evp 20,106,20,0,39,-5,0,0,22,-19,23,-10,0,0,-8,-38,5,3,-3,-22,-31,-26,-22,-33,-63,-65,84,69,66,41,70,-18,-16,-135,111,106,113,126,133,20,29,18,76,75,88,95,560,513,612,597,609,601,564,586,691,688,685,680,572,0,0,0,0,0,0,0,0,-69,-85,-135,0,0,0,0,0,0,8,0,0,0,0,-29981,-29982,-12809,-12814,-29995,-163,-29996,-29997]} 1. e4 {[%emt 0:00:57]} c5 {[%emt 0:05:08]} 2. Nf3 {[%emt 0:00:05]} d6 {[%emt 0:00:18]} 3. d4 {[%emt 0:00:05]} cxd4 {[%emt 0:00:06]} 4. Nxd4 {[%emt 0:00:04]} Nf6 {[%emt 0:00:07]} 5. Nc3 {[%emt 0:00:05]} a6 {[%emt 0:00:05]} 6. g3 {[%emt 0:00:05]} e6 {[%emt 0:02:11]} 7. Bg2 {[%emt 0:00:09]} Be7 {[%emt 0:00:17]} 8. O-O {[%emt 0:00:11]} O-O {[%emt 0:00:38]} 9. Be3 {[%emt 0:02:57]} Qc7 {[%emt 0:01:38]} 10. f4 {[%emt 0:02:37]} Nc6 {[%emt 0:02:25]} 11. Nb3 {[%emt 0:03:37]} Nd7 {[%emt 0:08:46] B80: Sicilian Scheveningen: 6 g3 and 6 Be3, including English Attack.} 12. g4 {[%emt 0:02:16]} b5 {[%emt 0:07:44]} 13. g5 {[%emt 0:00:16]} b4 {[%emt 0:03:51] The position is equal.} 14. Ne2 {[%emt 0:05:25] [#]} Bb7 $146 {[%emt 0:05:06]} ({Predecessor:} 14... Re8 15. c4 Bb7 16. Rc1 Bf8 17. Qd2 Nc5 18. Ng3 g6 19. Rfd1 e5 20. f5 a5 {1-0 Arias,L (2329)-Pilarte,R (2132) Panama op 3rd 2013 (8)}) 15. Ng3 {[%emt 0:07:31]} Rfe8 {[%emt 0:02:41]} 16. Qg4 {[%emt 0:12:50]} Bf8 {[%emt 0:04:16]} 17. Rad1 {[%emt 0:04:00]} Ne7 {[%emt 0:05:27]} 18. Rf2 {[%emt 0:00:37][%cal Oc2c3]} Rad8 {[%emt 0:08:23]} 19. h4 {[%emt 0:01:31]} d5 {[%emt 0:03:59]} 20. e5 {[%emt 0:01:57]} Nb6 {[%emt 0:05:13]} 21. h5 {[%emt 0:03:54][%cal Og5g6]} Nc4 {[%emt 0:00:44][%csl LRb2,LRe3]} 22. Bc1 {[%emt 0:00:15]} g6 {[%emt 0:02:00]} (22... Qb6 $15 {keeps the upper hand.}) 23. hxg6 $16 {[%emt 0:06:20]} hxg6 {[%emt 0:00:09]} 24. Bf3 {[%emt 0:00:16]} (24. Qh3 {looks sharper.} Qb6 25. Bf3 Rc8 26. Nd4) 24... Qb6 {[%emt 0:01:40]} 25. Nd4 {[%emt 0:05:01]} (25. Qh3 $14) 25... Nc6 $11 {[%emt 0:06:03]} 26. c3 {[%emt 0:00:43]} (26. Nxc6 $1 $11 {was the only way to keep the balance.} Bxc6 27. Kg2) 26... Nxd4 $2 {[%emt 0:00:31]} (26... Bc5 $17 {[%cal Rc6d4]} 27. Nge2 Kg7) 27. cxd4 $16 {[%emt 0:00:24]} b3 {[%emt 0:00:16]} 28. a3 $36 {[%emt 0:05:08][%mdl 2048] White is in control.} Rc8 {[%emt 0:02:35]} 29. Rh2 {[%emt 0:00:36]} ({White should play} 29. Qh4 $16) 29... Bg7 $1 $11 {[%emt 0:01:41]} 30. Qh4 {[%emt 0:04:14]} Rc7 {[%emt 0:03:21]} (30... Kf8 $11) 31. Qh7+ $16 {[%emt 0:05:16]} Kf8 {[%emt 0:00:05] [#]} 32. Bh5 $1 {[%emt 0:00:06][%cal Oh5g6] And now Bxg6! would win.} Nxe5 {[%emt 0:04:10][%mdl 8192]} (32... Bc6 $16) (32... Ree7 33. Rf2) 33. fxe5 $18 {[%emt 0:03:44]} Bxe5 {[%emt 0:00:14] [#]} 34. Bxg6 $1 {[%emt 0:02:06][%cal Og1h1][%mdl 512] Hoping for Kh1!} Bxd4+ {[%emt 0:03:12]} 35. Kh1 {[%emt 0:01:27]} Be5 {[%emt 0:02:07] [#] Prevents Bf4} 36. Rf1 $1 {[%emt 0:05:59][%cal Rf1f7]} Ree7 {[%emt 0:00:35][%cal Be8e7,Be7c7,Bc7c2][%mdl 32]} (36... d4+ 37. Ne4) 37. Bf4 {[%emt 0:03:56][%cal Oh7h8]} f5 {[%emt 0:05:57]} 38. Qh6+ {[%emt 0:00:13]} Bg7 {[%emt 0:00:24] [#]} 39. Bxc7 $2 {[%emt 0:00:40]} (39. Nxf5 $1 $18 {White wants to mate with Qh8+.} Bxh6 40. Nxe7 d4+ 41. Kg1) 39... d4+ $11 {[%emt 0:00:25][%cal Bd5d4,Bd4d3][%mdl 32]} 40. Kg1 {[%emt 0:00:37]} Rxc7 {[%emt 0:00:17]} 41. Qh3 {[%emt 0:02:41][%cal Og3f5] Intending Nxf5! and mate.} (41. Qh4 $5 d3+ $8 42. Rhf2 $11) 41... d3+ {[%emt 0:00:14]} 42. Rhf2 {[%emt 0:00:05][%cal Og3f5] Nxf5! is the strong threat.} Bd4 $1 {[%emt 0:00:25][%cal Oc7c2] Against Nxf5. Threatens to win with ...Rc2! A strong pair of Bishops.} 43. Bxf5 {[%emt 0:00:46]} Rc2 $1 $15 {[%emt 0:02:44][%mdl 64] Pin. Chess con chili. Black is much more active.} (43... Bxf2+ 44. Rxf2 Rc1+ 45. Nf1 exf5 46. Qxf5+ (46. Qh8+ Kf7 $11) 46... Ke8 47. Qxd3 $11) 44. Ne4 {[%emt 0:06:28]} (44. Bxe6+ $2 Bxf2+ 45. Kh2 Ke7 46. Nf5+ Kxe6 $19) ({White should try} 44. Kh2 Rxf2+ 45. Rxf2 Bxf2 46. Qh8+ (46. Bxd3 $2 Bg1#) 46... Ke7 47. Qf6+ (47. Bxd3 $2 Bxg3+ 48. Kh3 Qg1 $19) 47... Kd7 48. Qf7+ (48. Bxd3 Qd4 $17) 48... Kd8 49. Bxe6 (49. Qxe6 $2 Qd4 $19)) 44... Bxe4 {[%emt 0:00:33]} (44... Bxf2+ $6 45. Rxf2 exf5 46. Qxf5+ (46. Qh8+ $2 Ke7 $19) 46... Ke7 47. Qh7+ Kd8 48. Kf1 Rc1+ 49. Kg2 $11) (44... exf5 $17 45. Qxf5+ Ke7) 45. Bxe4+ $11 {[%emt 0:00:01]} Rxf2 {[%emt 0:00:26]} 46. Rxf2+ {[%emt 0:03:15][%mdl 64] Remove Defender} Bxf2+ $17 {[%emt 0:00:05][%mdl 4096] Endgame KQB-KQB} 47. Kg2 {[%emt 0:00:03]} Qe3 {[%emt 0:02:07]} 48. Qh6+ {[%emt 0:02:28]} (48. Qxe6 $2 Qg3+ 49. Kh1 Qg1#) 48... Ke7 {[%emt 0:00:29]} 49. Qh7+ {[%emt 0:00:26]} (49. Bxd3 $2 Qg3+ 50. Kf1 Bd4 51. Qh7+ Kd6 $19) 49... Kd6 {[%emt 0:03:12] ( -> ...Qg3+)} 50. Bxd3 $2 {[%emt 0:00:23][%mdl 8192]} (50. Qh2+ $11 Kd7 51. Qh7+ Kd8 52. Qh8+ Ke7 53. Qh7+ (53. Bxd3 Qg3+ 54. Kf1 Qg1+ 55. Ke2 Qe1+ 56. Kf3 Qe3+ 57. Kg2 Qg3+ 58. Kf1 Qg1+ 59. Ke2 Qe1+ 60. Kf3 Qe3+ 61. Kg2 $17) 53... Kd8 54. Qh8+ Ke7 55. Qh7+ (55. Bxd3 Qg3+ 56. Kf1 Qg1+ 57. Ke2 Qe1+ 58. Kf3 Qe3+ 59. Kg2 Qg3+ 60. Kf1 Qg1+ 61. Ke2 Qe1+ 62. Kf3 Qe3+ 63. Kg2 $17)) 50... Qg3+ {[%emt 0:00:00]} (50... Qxg5+ 51. Kxf2 Qf6+ 52. Ke3 Qg5+ 53. Kf3 Qf6+ 54. Ke3 Qxb2 55. Qh4 (55. Bxa6 Qc1+ 56. Ke2 Qb2+ 57. Kf3 Qf6+ 58. Kg2 Qg5+ 59. Kf3 Qf6+ 60. Kg2 Qg5+ 61. Kf3 Qf6+ $11) 55... Qc1+ 56. Kf3 Qxa3 57. Qd8+ (57. Qd4+ Ke7 $11) 57... Ke5 58. Qg5+ Kd6 59. Qf6 $11) 51. Kf1 {[%emt 0:00:16]} Bd4 {[%emt 0:00:00][%csl Gd4][%cal Rg3f2]} 52. Ke2 {[%emt 0:00:38]} Qf2+ {[%emt 0:00:00][%mdl 64] Skewer} (52... Bxb2 53. Qb7 Qh2+ 54. Ke3 Qe5+ 55. Kf3 $17) 53. Kd1 {[%emt 0:00:01]} Be3 {[%emt 0:00:00] Black used his chance. An entertaining game by Senft.   Weighted Error Value: White=0.47/Black=0.39} ({Worse is} 53... Bxb2 54. Qb7 $17) 0-1

[Event "10th Cherry Blossom Classic 2023"]
[Site "Dulles"]
[Date "2023.05.29"]
[Round "7.9"]
[White "Marjanovic, Annamaria"]
[Black "Paul, Justin"]
[Result "1-0"]
[ECO "E09"]
[WhiteElo "2273"]
[BlackElo "2314"]
[Annotator "TA"]
[PlyCount "47"]
[EventDate "2023.05.24"]
[EventType "swiss"]
[EventCountry "USA"]
[SourceTitle "playchess.com"]
[Source "ChessBase"]
[SourceQuality "1"]
[TimeControl "5400+30"]

{[%evp 15,47,5,27,25,45,36,67,69,53,52,75,79,83,35,58,55,78,49,52,63,64,29,75,65,92,82,199,196,351,351,517,510,750,735]} 1. d4 {[%emt 0:02:01]} Nf6 {[%emt 0:00:19]} 2. c4 {[%emt 0:00:07]} e6 {[%emt 0:00:13]} 3. g3 {[%emt 0:00:07]} d5 {[%emt 0:01:36]} 4. Bg2 {[%emt 0:00:08]} Be7 {[%emt 0:00:25]} 5. Nf3 {[%emt 0:00:14]} O-O {[%emt 0:00:26]} 6. O-O {[%emt 0:00:09]} Nbd7 {[%emt 0:02:30]} 7. Qc2 {[%emt 0:01:28]} c6 {[%emt 0:00:24]} 8. Nbd2 {[%emt 0:00:13]} a5 {[%emt 0:01:43]} 9. e4 {[%emt 0:06:43] E09: Closed Catalan: Main Line: 7 Qc2 c6 8 Nbd2.} dxe4 {[%emt 0:00:24]} 10. Nxe4 {[%emt 0:00:08]} a4 {[%emt 0:00:45][%cal Oe6e5]} 11. Bf4 {[%emt 0:07:32] White is slightly better.} Nxe4 {[%emt 0:07:24]} 12. Qxe4 {[%emt 0:00:05]} Qa5 {[%emt 0:01:25]} 13. Rfd1 {[%emt 0:06:22] [#]} Re8 $146 {[%emt 0:07:18]} ({Predecessor:} 13... Qh5 14. h3 Re8 15. Qe2 g5 16. Bc7 Qg6 17. Rd3 Bd8 18. Bxd8 Rxd8 19. Rad1 Nf8 {1-0 Kovacevic,B (2467)-Maras,M (2231) CRO-chT1A Bol 2014 (1.1)}) 14. Ne5 {[%emt 0:05:39]} (14. Rac1 $16) 14... Nxe5 {[%emt 0:05:45]} 15. dxe5 {[%emt 0:04:40]} Qc7 {[%emt 0:04:04]} 16. Rd2 {[%emt 0:02:13]} Bd7 {[%emt 0:14:33]} 17. Rad1 {[%emt 0:02:20]} Red8 {[%emt 0:00:26]} 18. h4 {[%emt 0:09:39]} Rab8 {[%emt 0:03:07]} (18... Be8 $11) 19. Bg5 {[%emt 0:13:55] White has more active pieces.} (19. c5 $5 {[%cal Re4a4]}) 19... Bxg5 {[%emt 0:03:38]} 20. hxg5 {[%emt 0:02:06]} c5 {[%emt 0:00:30] [#]} (20... Be8 $16) 21. g6 $1 {[%emt 0:09:55][%mdl 512]} hxg6 {[%emt 0:03:46]} (21... Bc6 22. Qh4 (22. gxh7+ Kh8 $14) 22... Rxd2 23. Qxh7+ Kf8 24. Qh8+ (24. Rxd2 Qxe5 25. Rd3 Qf5 $16) 24... Ke7 25. Qh4+ (25. Rxd2 $2 Rxh8 26. Re2 Qd7 $19) 25... Ke8 26. Bxc6+ (26. Rxd2 Qxe5 27. Rd3 fxg6 $16) 26... bxc6 27. gxf7+ (27. Rxd2 Qxe5 28. Rd3 fxg6 $16) 27... Kxf7 28. Qf4+ (28. Rxd2 Qxe5 29. Rd7+ Kg8 $11) 28... Kg8 29. Rxd2 Qf7) (21... Be8 22. gxh7+) 22. Qh4 $18 {[%emt 0:00:36]} a3 {[%emt 0:00:23]} (22... Qxe5 $142 23. Rxd7 Rxd7 24. Rxd7 Qxb2) 23. bxa3 {[%emt 0:03:59]} Kf8 {[%emt 0:01:16] [#]} 24. Rxd7 $1 {[%emt 0:00:32][%mdl 512] Weighted Error Value: White=0.11 (very precise) /Black=0.48} 1-0